lending/lending_fUSD_20240411
["ID","MTS","AMOUNT","RATE_DAILY","PERIOD"]
[322134668,1712835062127,-500.0,0.00033424,7]
[322134669,1712835062138,-500.0,0.00033424,7]
[322134670,1712835062147,-500.0,0.00033424,7]
[322134671,1712835062157,-500.0,0.00033424,7]
[322134672,1712835062167,-500.0,0.00033424,7]
[322134673,1712835062342,-500.0,0.00033424,7]
[322134674,1712835062371,-500.0,0.00033424,7]
[322134675,1712835062382,-500.0,0.00033424,7]
[322134676,1712835062395,-1150.56,0.00033424,7]
[322134677,1712835062405,-554.68,0.00033424,7]
[322134678,1712835062417,-500.0,0.00033424,7]
[322134679,1712835062428,-500.0,0.00033424,7]
[322134680,1712835062438,-576.21,0.00033424,7]
[322134681,1712835062448,-517.09254393,0.00033424,7]
[322134682,1712835062457,-500.0,0.00033424,7]
[322134683,1712835062466,-1667.34,0.00033424,7]
[322134684,1712835062476,-651.3,0.00033424,7]
[322134685,1712835062485,-500.0,0.00033424,7]
[322134686,1712835062497,-500.0,0.00033424,7]
[322134687,1712835062506,-500.0,0.00033424,7]
[322134688,1712835062515,-500.0,0.00033424,7]
[322134689,1712835062524,-500.0,0.00033424,7]
[322134690,1712835062534,-500.0,0.00033424,7]
[322134691,1712835062544,-174.55347604,0.00033424,7]
[322134692,1712835062554,-500.0,0.00033424,7]
[322134693,1712835062563,-500.0,0.00033424,7]
[322134694,1712835062574,-581.12,0.00033424,7]
[322134695,1712835062583,-500.0,0.00033424,7]
[322134696,1712835062593,-500.0,0.00033424,7]
[322134697,1712835062603,-500.0,0.00033424,7]
[322134698,1712835062614,-583.43,0.00033424,7]
[322134699,1712835062625,-500.0,0.00033424,7]
[322134700,1712835062634,-500.0,0.00033424,7]
[322134701,1712835062645,-510.15016737,0.00033424,7]
[322134702,1712835062657,-500.0,0.00033424,7]
[322134703,1712835062666,-186.18703618,0.00033424,7]
[322134704,1712835062677,-150.0,0.00033424,7]
[322134705,1712835062686,-500.0,0.00033424,7]
[322134706,1712835062697,-500.0,0.00033424,7]
[322134707,1712835062707,-526.18,0.00033424,7]
[322134708,1712835062718,-652.97,0.00033424,2]
[322134709,1712835062727,-500.0,0.00033424,7]
[322134710,1712835062737,-500.0,0.00033424,7]
[322134711,1712835062747,-500.0,0.00033424,7]
[322134712,1712835062759,-500.0,0.00033424,7]
[322134713,1712835062769,-500.0,0.00033424,7]
[322134714,1712835062778,-500.0,0.00033424,7]
[322134715,1712835062788,-500.0,0.00033424,7]
[322134716,1712835062797,-500.0,0.00033424,7]
[322134717,1712835062807,-500.0,0.00033424,7]
[322134718,1712835062817,-500.0,0.00033424,7]
[322134719,1712835062828,-500.0,0.00033424,7]
[322134720,1712835062838,-500.0,0.00033424,7]
[322134721,1712835062850,-500.0,0.00033424,7]
[322134722,1712835062861,-726.58,0.00033424,7]
[322134723,1712835062871,-500.0,0.00033424,7]
[322134724,1712835062881,-500.0,0.00033424,7]
[322134725,1712835062891,-500.0,0.00033424,7]
[322134726,1712835062901,-500.0,0.00033424,7]
[322134727,1712835062911,-500.0,0.00033424,7]
[322134728,1712835062921,-500.0,0.00033424,7]
[322134729,1712835062930,-500.0,0.00033424,7]
[322134730,1712835062941,-500.0,0.00033424,7]
[322134731,1712835062951,-500.0,0.00033424,7]
[322134732,1712835062960,-500.0,0.00033424,7]
[322134733,1712835062970,-500.0,0.00033424,7]
[322134734,1712835062979,-649.64,0.00033424,7]
[322134735,1712835062989,-512.79880659,0.00033424,7]
[322134736,1712835062999,-500.0,0.00033424,7]
[322134737,1712835063009,-500.0,0.00033424,7]
[322134738,1712835063018,-500.0,0.00033424,7]
[322134739,1712835063028,-500.0,0.00033424,7]
[322134740,1712835063037,-500.0,0.00033424,7]
[322134741,1712835063047,-500.0,0.00033424,7]
[322134742,1712835063057,-500.0,0.00033424,7]
[322134743,1712835063067,-500.0,0.00033424,7]
[322134744,1712835063077,-619.05,0.00033424,7]
[322134745,1712835063088,-500.0,0.00033424,7]
[322134746,1712835063097,-500.0,0.00033424,7]
[322134747,1712835063108,-773.67,0.00033424,7]
[322134748,1712835063118,-500.0,0.00033424,7]
[322134749,1712835063130,-1107.75,0.00033424,7]
[322134750,1712835063141,-500.0,0.00033424,7]
[322134751,1712835063151,-500.0,0.00033424,7]
[322134752,1712835063161,-500.0,0.00033424,7]
[322134753,1712835063172,-500.0,0.00033424,7]
[322134754,1712835063182,-1993.1,0.00033424,7]
[322134755,1712835063192,-500.0,0.00033424,7]
[322134756,1712835063203,-500.0,0.00033424,7]
[322134757,1712835063214,-500.0,0.00033424,7]
[322134758,1712835063225,-500.0,0.00033424,7]
[322134759,1712835063235,-500.0,0.00033424,7]
[322134760,1712835063247,-500.0,0.00033424,7]
[322134761,1712835063257,-500.0,0.00033424,7]
[322134762,1712835063272,-500.0,0.00033424,7]
[322134763,1712835063294,-500.0,0.00033424,7]
[322134764,1712835063304,-500.0,0.00033424,7]
[322134765,1712835063314,-500.0,0.00033424,7]
[322134766,1712835063325,-500.0,0.00033424,7]
[322134767,1712835063335,-500.0,0.00033424,7]
[322134768,1712835063346,-500.0,0.00033424,7]
[322134769,1712835063357,-500.0,0.00033424,7]
[322134770,1712835063367,-500.0,0.00033424,7]
[322134771,1712835063378,-300.0,0.00033424,7]
[322134772,1712835063389,-500.0,0.00033424,7]
[322134773,1712835063400,-941.04,0.00033424,7]
[322134774,1712835063411,-567.16,0.00033424,7]
[322134775,1712835063420,-500.0,0.00033424,7]
[322134776,1712835063430,-2485.32,0.00033424,7]
[322134777,1712835063439,-500.0,0.00033424,7]
[322134778,1712835063448,-500.0,0.00033424,7]
[322134779,1712835063457,-500.0,0.00033424,7]
[322134780,1712835063467,-500.0,0.00033424,7]
[322134781,1712835063477,-700.3,0.00033424,7]
[322134782,1712835063486,-2029.4,0.00033424,7]
[322134783,1712835063499,-500.0,0.00033424,7]
[322134784,1712835063509,-500.0,0.00033424,7]
[322134785,1712835063518,-500.0,0.00033424,7]
[322134786,1712835063528,-500.0,0.00033424,7]
[322134787,1712835063537,-821.46,0.00033424,7]
[322134788,1712835063547,-500.0,0.00033424,7]
[322134789,1712835063557,-500.0,0.00033424,7]
[322134790,1712835063567,-500.0,0.00033424,7]
[322134791,1712835063576,-500.0,0.00033424,7]
[322134792,1712835063585,-500.0,0.00033424,7]
[322134793,1712835063594,-500.0,0.00033424,7]
[322134794,1712835063604,-895.11,0.00033424,7]
[322134795,1712835063613,-500.0,0.00033424,7]
[322134796,1712835063622,-500.0,0.00033424,7]
[322134797,1712835063631,-500.0,0.00033424,7]
[322134798,1712835063641,-492.51126928,0.00033424,7]
[322134799,1712835063650,-500.0,0.00033424,7]
[322134800,1712835063659,-577.96,0.00033424,7]
[322134801,1712835063669,-500.0,0.00033424,7]
[322134802,1712835063678,-500.0,0.00033424,7]
[322134803,1712835063687,-500.0,0.00033424,7]
[322134804,1712835063696,-500.0,0.00033424,7]
[322134805,1712835063706,-1777.01,0.00033424,7]
[322134806,1712835063715,-971.02,0.00033424,7]
[322134807,1712835063725,-500.0,0.00033424,7]
[322134808,1712835063735,-500.0,0.00033424,7]
[322134809,1712835063748,-500.0,0.00033424,7]
[322134810,1712835063757,-500.0,0.00033424,7]
[322134811,1712835063767,-500.0,0.00033424,7]
[322134812,1712835063776,-500.0,0.00033424,7]
[322134813,1712835063786,-500.0,0.00033424,7]
[322134814,1712835063797,-500.0,0.00033424,7]
[322134815,1712835063807,-500.0,0.00033424,7]
[322134816,1712835063817,-500.0,0.00033424,7]
[322134817,1712835063827,-500.0,0.00033424,7]
[322134818,1712835063837,-500.0,0.00033424,7]
[322134819,1712835063847,-500.0,0.00033424,7]
[322134820,1712835063857,-518.88723387,0.00033424,7]
[322134821,1712835063866,-532.19,0.00033424,7]
[322134822,1712835063875,-1046.23,0.00033424,7]
[322134823,1712835063884,-500.0,0.00033424,7]
[322134824,1712835063893,-500.0,0.00033424,7]
[322134825,1712835063903,-1865.42,0.00033424,7]
[322134826,1712835063912,-500.0,0.00033424,7]
[322134827,1712835063921,-500.0,0.00033424,7]
[322134828,1712835063930,-500.0,0.00033424,7]
[322134829,1712835063939,-500.0,0.00033424,7]
[322134830,1712835063949,-201.64882768,0.00033424,7]
[322134831,1712835063958,-500.0,0.00033424,7]
[322134832,1712835063967,-520.8812645,0.00033424,7]
[322134833,1712835063977,-500.0,0.00033424,7]
[322134834,1712835063986,-521.47,0.00033424,7]
[322134835,1712835063997,-390.02,0.00033424,7]
[322134836,1712835064007,-1345.41,0.00033424,7]
[322134837,1712835064017,-1094.43,0.00033424,7]
[322134838,1712835064026,-500.0,0.00033424,7]
[322134839,1712835064036,-688.91,0.00033424,7]
[322134840,1712835064046,-500.0,0.00033424,7]
[322134841,1712835064055,-500.0,0.00033424,7]
[322134842,1712835064064,-500.0,0.00033424,7]
[322134843,1712835064074,-500.0,0.00033424,7]
[322134844,1712835064083,-500.0,0.00033424,7]
[322134845,1712835064092,-1676.46,0.00033424,7]
[322134846,1712835064101,-500.0,0.00033424,7]
[322134847,1712835064111,-2440.72,0.00033424,7]
[322134848,1712835064120,-500.0,0.00033424,7]
[322134849,1712835064129,-500.0,0.00033424,7]
[322134850,1712835064138,-500.0,0.00033424,7]
[322134851,1712835064147,-500.0,0.00033424,7]
[322134852,1712835064156,-1019.84,0.00033424,7]
[322134853,1712835064166,-500.0,0.00033424,7]
[322134854,1712835064175,-500.0,0.00033424,7]
[322134855,1712835064184,-500.0,0.00033424,7]
[322134856,1712835064193,-500.0,0.00033424,7]
[322134857,1712835064203,-516.74,0.00033424,7]
[322134858,1712835064211,-500.0,0.00033424,7]
[322134859,1712835064221,-1078.81,0.00033424,7]
[322134860,1712835064230,-500.0,0.00033424,7]
[322134861,1712835064241,-1391.89,0.00033424,7]
[322134862,1712835064250,-1269.98,0.00033424,7]
[322134863,1712835064262,-500.0,0.00033424,7]
[322134864,1712835064271,-1186.37,0.00033424,7]
[322134865,1712835064281,-500.0,0.00033424,7]
[322134866,1712835064291,-658.25,0.00033424,7]
[322134867,1712835064300,-500.0,0.00033424,7]
[322134868,1712835064309,-500.0,0.00033424,7]
[322134869,1712835064319,-500.0,0.00033424,7]
[322134870,1712835064329,-500.0,0.00033424,7]
[322134871,1712835064341,-500.0,0.00033424,7]
[322134872,1712835064350,-500.0,0.00033424,7]
[322134873,1712835064360,-500.0,0.00033424,7]
[322134874,1712835064370,-500.0,0.00033424,7]
[322134875,1712835064380,-500.0,0.00033424,7]
[322134876,1712835064391,-500.0,0.00033424,7]
[322134877,1712835064402,-1179.44,0.00033424,7]
[322134878,1712835064413,-500.0,0.00033424,7]
[322134879,1712835064423,-957.57,0.00033424,7]
[322134880,1712835064432,-411.34446551,0.00033424,7]
[322134881,1712835064442,-1866.13,0.00033424,7]
[322134882,1712835064452,-574.37,0.00033424,7]
[322134883,1712835064461,-500.0,0.00033424,7]
[322134884,1712835064472,-498.82018041,0.00033424,7]
[322134885,1712835064481,-500.0,0.00033424,7]
[322134886,1712835064491,-864.81,0.00033424,7]
[322134887,1712835064500,-682.63,0.00033424,7]
[322134888,1712835064508,-500.0,0.00033424,7]
[322134889,1712835064518,-500.0,0.00033424,7]
[322134890,1712835064526,-500.0,0.00033424,7]
[322134891,1712835064535,-500.0,0.00033424,7]
[322134892,1712835064544,-511.07875954,0.00033424,7]
[322134893,1712835064553,-1946.46,0.00033424,7]
[322134894,1712835064563,-1282.77,0.00033424,7]
[322134895,1712835064572,-500.0,0.00033424,7]
[322134896,1712835064581,-991.32,0.00033424,7]
[322134897,1712835064590,-500.0,0.00033424,7]
[322134898,1712835064599,-500.0,0.00033424,7]
[322134899,1712835064609,-1756.53,0.00033424,7]
[322134900,1712835064618,-560.30660261,0.00033424,7]
[322134901,1712835064628,-500.0,0.00033424,7]
[322134902,1712835064638,-500.0,0.00033424,7]
[322134903,1712835064649,-500.0,0.00033424,7]
[322134904,1712835064660,-500.0,0.00033424,7]
[322134905,1712835064669,-1670.35,0.00033424,7]
[322134906,1712835064678,-231.85,0.00033424,7]
[322134907,1712835064687,-531.02,0.00033424,7]
[322134908,1712835064696,-725.32,0.00033424,7]
[322134909,1712835064706,-500.0,0.00033424,7]
[322134910,1712835064715,-1201.93,0.00033424,7]
[322134911,1712835064726,-500.0,0.00033424,7]
[322134912,1712835064738,-500.0,0.00033424,7]
[322134913,1712835064749,-946.19,0.00033424,7]
[322134914,1712835064758,-500.0,0.00033424,7]
[322134915,1712835064768,-495.24745655,0.00033424,7]
[322134916,1712835064777,-1000.79,0.00033424,7]
[322134917,1712835064786,-500.0,0.00033424,7]
[322134918,1712835064795,-500.0,0.00033424,7]
[322134919,1712835064804,-546.75981286,0.00033424,7]
[322134920,1712835064815,-500.0,0.00033424,7]
[322134921,1712835064824,-500.0,0.00033424,7]
[322134922,1712835064833,-500.0,0.00033424,7]
[322134923,1712835064843,-536.21510379,0.00033424,7]
[322134924,1712835064852,-500.0,0.00033424,7]
[322134925,1712835064861,-660.6,0.00033424,7]
[322134926,1712835064870,-500.0,0.00033424,2]
[322134927,1712835064880,-500.0,0.00033424,7]
[322134928,1712835064889,-500.0,0.00033424,7]
[322134929,1712835064898,-2290.52,0.00033424,7]
[322134930,1712835064907,-500.0,0.00033424,7]
[322134931,1712835064916,-537.49,0.00033424,7]
[322134932,1712835064925,-538.89420029,0.00033424,7]
[322134933,1712835064935,-500.0,0.00033424,7]
[322134934,1712835064943,-500.0,0.00033424,7]
[322134935,1712835064953,-500.0,0.00033424,7]
[322134936,1712835064961,-500.0,0.00033424,7]
[322134937,1712835064970,-500.0,0.00033424,7]
[322134938,1712835064980,-500.0,0.00033424,7]
[322134939,1712835064990,-500.0,0.00033424,2]
[322134940,1712835064999,-519.6839885,0.00033424,7]
[322134941,1712835065008,-500.0,0.00033424,7]
[322134942,1712835065017,-500.0,0.00033424,7]
[322134943,1712835065027,-483.39527929,0.00033424,7]
[322134944,1712835065036,-592.27,0.00033424,7]
[322134945,1712835065045,-500.0,0.00033424,7]
[322134946,1712835065055,-500.0,0.00033424,7]
[322134947,1712835065064,-500.0,0.00033424,7]
[322134948,1712835065074,-500.0,0.00033424,7]
[322134949,1712835065083,-500.0,0.00033424,7]
[322134950,1712835065093,-540.64,0.00033424,7]
[322134951,1712835065102,-500.0,0.00033424,7]
[322134952,1712835065111,-1726.97,0.00033424,7]
[322134953,1712835065120,-500.0,0.00033424,7]
[322134954,1712835065130,-500.0,0.00033424,7]
[322134955,1712835065139,-299.58822191,0.00033424,7]
[322134956,1712835065148,-500.0,0.00033424,7]
[322134957,1712835065158,-1326.35,0.00033424,7]
[322134958,1712835065167,-500.0,0.00033424,7]
[322134959,1712835065176,-500.0,0.00033424,7]
[322134960,1712835065185,-500.0,0.00033424,7]
[322134961,1712835065195,-500.0,0.00033424,7]
[322134962,1712835065205,-500.0,0.00033424,7]
[322134963,1712835065213,-281.044151,0.00033424,7]
[322134964,1712835065223,-500.0,0.00033424,7]
[322134965,1712835065233,-254.05,0.00033424,7]
[322134966,1712835065243,-500.0,0.00033424,7]
[322134967,1712835065252,-1026.87,0.00033424,7]
[322134968,1712835065438,-500.0,0.00033424,7]
[322134969,1712835065449,-500.0,0.00033424,7]
[322134970,1712835065459,-500.0,0.00033424,7]
[322134971,1712835065468,-777.89,0.00033424,7]
[322134972,1712835065478,-1305.36,0.00033424,7]
[322134973,1712835065488,-1531.52,0.00033424,7]
[322134974,1712835065499,-500.0,0.00033424,7]
[322134975,1712835065509,-500.0,0.00033424,7]
[322134976,1712835065518,-209.20666828,0.00033424,7]
[322134977,1712835065528,-1426.11,0.00033424,7]
[322134978,1712835065538,-500.0,0.00033424,7]
[322134979,1712835065547,-532.63672494,0.00033424,7]
[322134980,1712835065557,-500.0,0.00033424,7]
[322134981,1712835065567,-500.0,0.00033424,7]
[322134982,1712835065577,-500.0,0.00033424,7]
[322134983,1712835065587,-1395.05,0.00033424,7]
[322134984,1712835065597,-695.3,0.00033424,7]
[322134985,1712835065608,-500.0,0.00033424,7]
[322134986,1712835065618,-500.0,0.00033424,7]
[322134987,1712835065628,-500.0,0.00033424,7]
[322134988,1712835065638,-500.0,0.00033424,7]
[322134989,1712835065648,-500.0,0.00033424,7]
[322134990,1712835065657,-500.0,0.00033424,7]
[322134991,1712835065667,-500.0,0.00033424,7]
[322134992,1712835065677,-500.0,0.00033424,7]
[322134993,1712835065686,-544.52,0.00033424,7]
[322134994,1712835065696,-1080.48,0.00033424,7]
[322134995,1712835065706,-663.82,0.00033424,7]
[322134996,1712835065715,-500.0,0.00033424,7]
[322134997,1712835065725,-500.0,0.00033424,7]
[322134998,1712835065735,-500.0,0.00033424,7]
[322134999,1712835065746,-394.1091735,0.00033424,7]
[322135000,1712835065756,-500.0,0.00033424,7]
[322135001,1712835065765,-500.0,0.00033424,7]
[322135002,1712835065775,-500.0,0.00033424,7]
[322135003,1712835065784,-500.0,0.00033424,7]
[322135004,1712835065795,-500.0,0.00033424,7]
[322135005,1712835065804,-500.0,0.00033424,7]
[322135006,1712835065814,-500.0,0.00033424,7]
[322135007,1712835065825,-500.0,0.00033424,7]
[322135008,1712835065835,-738.19,0.00033424,7]
[322135009,1712835065845,-500.0,0.00033424,7]
[322135010,1712835065855,-552.25587459,0.00033424,7]
[322135011,1712835065865,-572.29275997,0.00033424,7]
[322135012,1712835065875,-554.47729187,0.00033424,7]
[322135013,1712835065885,-1657.38,0.00033424,7]
[322135014,1712835065894,-500.0,0.00033424,7]
[322135015,1712835065904,-768.08,0.00033424,7]
[322135016,1712835065914,-500.0,0.00033424,7]
[322135017,1712835065923,-500.0,0.00033424,7]
[322135018,1712835065933,-313.81,0.00033424,7]
[322135019,1712835065942,-500.0,0.00033424,7]
[322135020,1712835065952,-500.0,0.00033424,7]
[322135021,1712835065962,-500.0,0.00033424,7]
[322135022,1712835065971,-500.0,0.00033424,7]
[322135023,1712835065981,-500.0,0.00033424,7]
[322135024,1712835065991,-771.99,0.00033424,7]
[322135025,1712835066001,-500.0,0.00033424,7]
[322135026,1712835066011,-500.0,0.00033424,7]
[322135027,1712835066021,-500.0,0.00033424,7]
[322135028,1712835066031,-507.16684623,0.00033424,7]
[322135029,1712835066040,-500.0,0.00033424,7]
[322135030,1712835066050,-1295.59,0.00033424,7]
[322135031,1712835066060,-500.0,0.00033424,7]
[322135032,1712835066069,-500.0,0.00033424,7]
[322135033,1712835066079,-500.0,0.00033424,7]
[322135034,1712835066088,-500.0,0.00033424,7]
[322135035,1712835066098,-500.0,0.00033424,7]
[322135036,1712835066106,-500.0,0.00033424,7]
[322135037,1712835066118,-199.44,0.00033424,7]
[322135038,1712835066128,-500.0,0.00033424,7]
[322135039,1712835066137,-500.0,0.00033424,7]
[322135040,1712835066145,-1007.34,0.00033424,7]
[322135041,1712835066154,-500.0,0.00033424,7]
[322135042,1712835066164,-562.22,0.00033424,7]
[322135043,1712835066173,-228.92892404,0.00033424,7]
[322135044,1712835066183,-500.0,0.00033424,7]
[322135045,1712835066193,-817.22,0.00033424,7]
[322135046,1712835066202,-711.84,0.00033424,7]
[322135047,1712835066211,-500.0,0.00033424,7]
[322135048,1712835066221,-500.0,0.00033424,7]
[322135049,1712835066231,-500.0,0.00033424,7]
[322135050,1712835066241,-361.8716469,0.00033424,7]
[322135051,1712835066252,-675.1,0.00033424,7]
[322135052,1712835066261,-500.0,0.00033424,7]
[322135053,1712835066271,-500.0,0.00033424,7]
[322135054,1712835066281,-500.0,0.00033424,7]
[322135055,1712835066290,-500.0,0.00033424,7]
[322135056,1712835066300,-500.0,0.00033424,7]
[322135057,1712835066310,-512.35,0.00033424,7]
[322135058,1712835066319,-500.0,0.00033424,7]
[322135059,1712835066329,-1050.38,0.00033424,7]
[322135060,1712835066342,-500.0,0.00033424,7]
[322135061,1712835066353,-500.0,0.00033424,7]
[322135062,1712835066362,-1430.05,0.00033424,7]
[322135063,1712835066372,-500.0,0.00033424,7]
[322135064,1712835066383,-500.0,0.00033424,7]
[322135065,1712835066393,-1230.3,0.00033424,7]
[322135066,1712835066403,-161.34728177,0.00033424,7]
[322135067,1712835066413,-500.0,0.00033424,7]
[322135068,1712835066425,-500.0,0.00033424,7]
[322135069,1712835066436,-251.31449179,0.00033424,7]
[322135070,1712835066446,-500.0,0.00033424,7]
[322135071,1712835066456,-1068.02,0.00033424,7]
[322135072,1712835066466,-500.0,0.00033424,7]
[322135073,1712835066476,-500.0,0.00033424,7]
[322135074,1712835066485,-745.95,0.00033424,7]
[322135075,1712835066496,-500.0,0.00033424,7]
[322135076,1712835066505,-500.0,0.00033424,7]
[322135077,1712835066515,-500.0,0.00033424,7]
[322135078,1712835066525,-1528.91,0.00033424,7]
[322135079,1712835066534,-1194.02,0.00033424,7]
[322135080,1712835066544,-500.0,0.00033424,7]
[322135081,1712835066554,-500.0,0.00033424,7]
[322135082,1712835066563,-500.0,0.00033424,7]
[322135083,1712835066573,-885.09,0.00033424,7]
[322135084,1712835066583,-1771.27,0.00033424,7]
[322135085,1712835066593,-500.0,0.00033424,7]
[322135086,1712835066602,-598.24284034,0.00033424,7]
[322135087,1712835066612,-527.6386679,0.00033424,7]
[322135088,1712835066621,-500.0,0.00033424,7]
[322135089,1712835066631,-1685.8,0.00033424,7]
[322135090,1712835066641,-513.33983015,0.00033424,7]
[322135091,1712835066653,-500.0,0.00033424,7]
[322135092,1712835066663,-500.0,0.00033424,7]
[322135093,1712835066673,-988.56,0.00033424,7]
[322135094,1712835066683,-500.0,0.00033424,7]
[322135095,1712835066693,-1040.44,0.00033424,7]
[322135096,1712835066703,-500.0,0.00033424,7]
[322135097,1712835066714,-984.92,0.00033424,7]
[322135098,1712835066724,-500.0,0.00033424,7]
[322135099,1712835066734,-500.0,0.00033424,7]
[322135100,1712835066745,-1553.96,0.00033424,7]
[322135101,1712835066755,-587.41638056,0.00033424,7]
[322135102,1712835066765,-1458.52,0.00033424,7]
[322135103,1712835066775,-801.95,0.00033424,7]
[322135104,1712835066784,-500.0,0.00033424,7]
[322135105,1712835066794,-500.0,0.00033424,7]
[322135106,1712835066804,-500.0,0.00033424,7]
[322135107,1712835066815,-500.0,0.00033424,7]
[322135108,1712835066825,-500.0,0.00033424,7]
[322135109,1712835066835,-476.60506462,0.00033424,7]
[322135110,1712835066845,-500.0,0.00033424,7]
[322135111,1712835066855,-500.0,0.00033424,7]
[322135112,1712835066865,-500.0,0.00033424,7]
[322135113,1712835066874,-1368.71,0.00033424,7]
[322135114,1712835066883,-500.0,0.00033424,7]
[322135115,1712835066892,-500.0,0.00033424,7]
[322135116,1712835066902,-500.0,0.00033424,7]
[322135117,1712835066911,-500.0,0.00033424,7]
[322135118,1712835066920,-611.71,0.00033424,7]
[322135119,1712835066930,-1579.71,0.00033424,7]
[322135120,1712835066940,-1490.83,0.00033424,7]
[322135121,1712835066949,-3488.58,0.00033424,7]
[322135122,1712835066958,-500.0,0.00033424,7]
[322135123,1712835066968,-500.0,0.00033424,7]
[322135124,1712835066978,-500.0,0.00033424,7]
[322135125,1712835066987,-500.0,0.00033424,7]
[322135126,1712835066998,-2218.19,0.00033424,7]
[322135127,1712835067007,-626.43168675,0.00033424,7]
[322135128,1712835067017,-500.0,0.00033424,7]
[322135129,1712835067026,-1079.02,0.00033424,7]
[322135130,1712835067035,-1000.0,0.00033424,2]
[322135131,1712835067044,-500.0,0.00033424,7]
[322135132,1712835067054,-500.0,0.00033424,7]
[322135133,1712835067063,-531.2063372,0.00033424,7]
[322135134,1712835067073,-500.0,0.00033424,7]
[322135135,1712835067082,-500.0,0.00033424,7]
[322135136,1712835067092,-1495.13,0.00033424,7]
[322135137,1712835067101,-1851.49,0.00033424,7]
[322135138,1712835067111,-500.0,0.00033424,7]
[322135139,1712835067120,-500.0,0.00033424,7]
[322135140,1712835067130,-500.0,0.00033424,7]
[322135141,1712835067139,-500.0,0.00033424,7]
[322135142,1712835067149,-209.09343122,0.00033424,7]
[322135143,1712835067159,-500.0,0.00033424,7]
[322135144,1712835067168,-741.04,0.00033424,7]
[322135145,1712835067178,-500.0,0.00033424,7]
[322135146,1712835067187,-500.0,0.00033424,7]
[322135147,1712835067196,-500.0,0.00033424,7]
[322135148,1712835067206,-500.0,0.00033424,7]
[322135149,1712835067215,-1070.22,0.00033424,7]
[322135150,1712835067224,-500.0,0.00033424,7]
[322135151,1712835067234,-500.0,0.00033424,7]
[322135152,1712835067245,-1011.13,0.00033424,7]
[322135153,1712835067255,-500.0,0.00033424,7]
[322135154,1712835067264,-197.52418352,0.00033424,7]
[322135155,1712835067273,-1082.72,0.00033424,7]
[322135156,1712835067283,-500.0,0.00033424,7]
[322135157,1712835067292,-500.0,0.00033424,7]
[322135158,1712835067301,-500.0,0.00033424,7]
[322135159,1712835067311,-606.89,0.00033424,7]
[322135160,1712835067321,-500.0,0.00033424,7]
[322135161,1712835067335,-1453.34,0.00033424,7]
[322135162,1712835067344,-884.63,0.00033424,7]
[322135163,1712835067353,-500.0,0.00033424,7]
[322135164,1712835067363,-500.0,0.00033424,7]
[322135165,1712835067373,-500.0,0.00033424,7]
[322135166,1712835067383,-1107.82,0.00033424,7]
[322135167,1712835067392,-520.98543981,0.00033424,7]